fUSD/lending_fUSD_20241122
["ID","MTS","AMOUNT","RATE_DAILY","PERIOD"]
[343009893,1732276232000,-409.07,0.00090233,2]
[343009895,1732276232009,-409.07,0.00090256,2]
[343009897,1732276232018,-409.07,0.0009028,2]
[343009899,1732276232028,-409.07,0.00090304,2]
[343009901,1732276232037,-700.75,0.0009031,120]
[343009903,1732276232046,-409.07,0.00090327,2]
[343009905,1732276232055,-409.07,0.00090351,2]
[343009906,1732276232065,-189.29,0.0009038,120]
[343009909,1732276232074,-150.0,0.0009038,20]
[343009911,1732276232083,-5408.44,0.0009041,120]
[343009913,1732276232093,-5000.0,0.00091,120]
[343009915,1732276232102,-656.75752908,0.000911,120]
[343009917,1732276232113,-209.43,0.00091105,2]
[343009919,1732276232122,-23900.0,0.00091302,30]
[343009921,1732276232131,-161.12,0.00091707,120]
[343009923,1732276232140,-1000.0,0.00091834,120]
[343009925,1732276232149,-500.0,0.00091967,120]
[343009927,1732276232159,-3600.0,0.00092,120]
[343009929,1732276232168,-1628.14,0.00092064,11]
[343009931,1732276232178,-159.18,0.00092137,120]
[343009933,1732276232187,-154.18,0.00092217,120]
[343009935,1732276232196,-170.21,0.00092588,30]
[343009937,1732276232205,-5000.0,0.00093,120]
[343009939,1732276232215,-209.43,0.00093369,2]
[343009941,1732276232228,-1589.931,0.00094861,120]
[343009942,1732276232237,-74361.14330354,0.00095,2]
[343009943,1732276232249,-8746.93261847,0.00095,2]
[343009944,1732276232261,-2430.69608959,0.00095,2]
[343009945,1732276232273,-1681.83487278,0.00095,2]
[343009946,1732276232282,-318.21354291,0.00095533,15]
[343009947,1732276232295,-46.8361172,0.00095533,15]
[343009948,1732276232305,-209.43,0.00095633,2]
[343009949,1732276232314,-365.04966007,0.00096018,15]
[343009950,1732276232323,-365.04966007,0.00096503,15]
[343009951,1732276232332,-795.4718585,0.000966,120]
[343009952,1732276232344,-632.89790067,0.000966,120]
[343009956,1732276237541,-518.0485031,0.00089026,120]
[343009957,1732276237553,-458.08,0.00089026,120]
[343009958,1732276237565,-887.6714969,0.00089026,120]
[343009959,1732276237574,-393.91,0.00089896,120]
[343009960,1732276237584,-500.0,0.000902,2]
[343009961,1732276237593,-173.7954631,0.000966,120]
[343009962,1732276237605,-3614.4926276,0.000966,120]
[343009963,1732276237623,-14501.80125,0.000966,120]
[343009964,1732276237652,-1974.8,0.000966,120]
[343009965,1732276237664,-30748.58634006,0.000966,120]
[343009966,1732276237763,-11804.41218607,0.000966,120]
[343009967,1732276237773,-1000.0,0.00096899,30]
[343009968,1732276237782,-1351.6512093,0.00096899,30]
[343009969,1732276237793,-1148.3487907,0.00096899,30]
[343009970,1732276237802,-1772.9249093,0.000969,120]
[343009971,1732276237951,-1012.75116148,0.000969,120]
[343009972,1732276237964,-6545.42426739,0.000969,120]
[343009973,1732276237976,-12268.89966183,0.000969,120]
[343009974,1732276237985,-206.8776327,0.000969,68]
[343009975,1732276237994,-320.13756822,0.000969,2]
[343009976,1732276238003,-612.49159826,0.00096986,120]
[343009978,1732276238012,-283.5188785,0.00096986,120]
[343009979,1732276238022,-294.32982671,0.00096986,120]
[343009980,1732276238031,-500.0,0.00096986,120]
[343009981,1732276238040,-500.0,0.00096986,120]
[343009982,1732276238050,-424.21,0.00096986,120]
[343009983,1732276238059,-500.0,0.00096986,120]
[343009984,1732276238068,-555.7527286,0.00096986,120]
[343009985,1732276238077,-500.0,0.00096986,120]
[343009986,1732276238087,-500.0,0.00096986,120]
[343009987,1732276238096,-500.0,0.00096986,120]
[343009988,1732276238106,-516.2781955,0.00096986,120]
[343009989,1732276238118,-500.0,0.00096986,120]
[343009990,1732276238128,-375.64,0.00096986,120]
[343009992,1732276238137,-904.7,0.00096986,120]
[343009993,1732276238147,-904.7,0.00096986,120]
[343009994,1732276238157,-904.7,0.00096986,120]
[343009995,1732276238166,-500.0,0.00096986,120]
[343009997,1732276238176,-500.0,0.00096986,120]
[343009998,1732276238185,-500.0,0.00096986,120]
[343009999,1732276238195,-500.0,0.00096986,120]
[343010000,1732276238204,-463.6027851,0.00096986,120]
[343010001,1732276238219,-169.9172149,0.00096986,120]
[343010002,1732276238228,-500.0,0.00096986,120]
[343010003,1732276238238,-500.0,0.00096986,120]
[343010004,1732276238248,-500.0,0.00096986,120]
[343010005,1732276238259,-500.0,0.00096986,120]
[343010006,1732276238269,-632.02,0.00096986,120]
[343010007,1732276238279,-500.0,0.00096986,120]
[343010008,1732276238288,-500.0,0.00096986,120]
[343010009,1732276238299,-500.0,0.00096986,120]
[343010010,1732276238309,-500.0,0.00096986,120]
[343010011,1732276238319,-500.0,0.00096986,120]
[343010012,1732276238328,-178.80419161,0.00096986,120]
[343010013,1732276238340,-321.19580839,0.00096986,120]
[343010014,1732276238350,-520.38967261,0.00096986,120]
[343010017,1732276239548,-1196.22032739,0.00096986,120]
[343010019,1732276239558,-1716.61,0.00096986,120]
[343010020,1732276239567,-948.25593679,0.00096986,120]
[343010021,1732276239580,-768.35406321,0.00096986,120]
[343010022,1732276239589,-365.04966007,0.00096989,15]
[343010023,1732276239599,-509.85,0.00096998,120]
[343010024,1732276239608,-450.0,0.00096998,120]
[343010025,1732276239619,-500.0,0.00096998,120]
[343010026,1732276239628,-344.452,0.00096998,120]
[343010027,1732276239637,-1763.0,0.00096999,8]
[343010028,1732276239647,-904.7,0.00096999,120]
[343010029,1732276239655,-904.7,0.00096999,120]
[343010030,1732276239665,-904.7,0.00096999,120]
[343010031,1732276239678,-904.7,0.00096999,120]
[343010032,1732276239688,-904.7,0.00096999,120]
[343010033,1732276239697,-904.7,0.00096999,120]
[343010034,1732276239707,-904.7,0.00096999,120]
[343010035,1732276239717,-904.7,0.00096999,120]
[343010036,1732276239726,-495.00393187,0.00096999,120]
[343010037,1732276239735,-500.0,0.00096999,120]
[343010038,1732276239744,-112.43548915,0.00096999,120]
[343010039,1732276239756,-416.8375,0.00096999,120]
[343010040,1732276239767,-72.10104482,0.00096999,120]
[343010041,1732276239777,-500.0,0.00096999,120]
[343010042,1732276239786,-500.0,0.00096999,120]
[343010043,1732276239795,-230.06409518,0.00096999,120]
[343010044,1732276239806,-269.93590482,0.00096999,120]
[343010045,1732276239815,-86.76826518,0.00096999,120]
[343010046,1732276239827,-413.23173482,0.00096999,120]
[343010047,1732276239836,-240.71724079,0.00096999,120]
[343010048,1732276239901,-259.28275921,0.00096999,120]
[343010049,1732276239910,-500.0,0.00096999,120]
[343010050,1732276239919,-500.0,0.00096999,120]
[343010051,1732276239928,-500.0,0.00096999,120]
[343010052,1732276239937,-500.0,0.00096999,120]
[343010053,1732276239946,-500.0,0.00096999,120]
[343010054,1732276239956,-500.0,0.00096999,120]
[343010055,1732276239965,-500.0,0.00096999,120]
[343010056,1732276239975,-500.0,0.00096999,120]
[343010057,1732276239984,-500.0,0.00096999,120]
[343010058,1732276239993,-500.0,0.00096999,120]
[343010059,1732276240002,-1716.61,0.00096999,120]
[343010060,1732276240012,-1716.61,0.00096999,120]
[343010061,1732276240021,-1716.61,0.00096999,120]
[343010062,1732276240030,-1716.61,0.00096999,120]
[343010064,1732276240039,-1716.61,0.00096999,120]
[343010065,1732276240048,-1716.61,0.00096999,120]
[343010066,1732276240058,-1716.61,0.00096999,120]
[343010067,1732276240067,-1716.61,0.00096999,120]
[343010068,1732276240076,-6102.42558005,0.00097,120]
[343010069,1732276240087,-1381.57441995,0.00097,120]
[343010070,1732276240097,-13927.4537152,0.00097,120]
[343010071,1732276240108,-702.14717062,0.00097,120]
[343010072,1732276240122,-2167.08165053,0.00097,120]
[343010073,1732276240133,-198244.7296725,0.00097,120]
[343010074,1732276240144,-6450.0,0.00097,120]
[343010075,1732276240155,-15000.0,0.00097,120]
[343010078,1732276243424,-2946.741287,0.00097,120]
[343010092,1732276243546,-6389.75331158,0.00097,120]
[343010095,1732276243558,-4593.18859975,0.00097,120]
[343010097,1732276243569,-1679.73444342,0.00097,120]
[343010099,1732276243581,-667.24032733,0.00097,120]
[343010109,1732276243667,-2940.19511437,0.00097,120]
[343010110,1732276243679,-10720.22178485,0.00097,120]
[343010111,1732276243690,-625.99999698,0.00097,120]
[343010112,1732276243780,-918.6700001,0.00097,120]
[343010113,1732276243791,-5005.2,0.00097,120]
[343010114,1732276243806,-15614.58742975,0.00097,120]
[343010115,1732276243863,-1814.41885655,0.00097,120]
[343010117,1732276243902,-300.09,0.00097,120]
[343010120,1732276245513,-2692.76,0.00089063,120]
[343010122,1732276245523,-1414.20484879,0.00089994,120]
[343010125,1732276245632,-4285.30587,0.00089994,120]
[343010126,1732276245643,-12623.05559847,0.00089994,120]
[343010127,1732276245654,-1647.72,0.00089994,120]
[343010128,1732276245665,-5029.71368274,0.00089994,120]
[343010129,1732276245675,-8321.24159947,0.00097,120]
[343010130,1732276245684,-500.0,0.00097,120]
[343010131,1732276245693,-215.97488481,0.00097032,28]
[343010132,1732276245702,-1452.93,0.00097417,120]
[343010133,1732276245712,-500.0,0.00097417,120]
[343010134,1732276245722,-500.0,0.00097417,120]
[343010135,1732276245733,-500.0,0.00097417,120]
[343010136,1732276245742,-558.71698772,0.00097417,120]
[343010137,1732276245752,-365.04966007,0.00097474,15]
[343010138,1732276245762,-623.7,0.00097565,120]
[343010139,1732276245771,-500.0,0.00097565,120]
[343010140,1732276245782,-359.95871,0.0009781,120]
[343010141,1732276245791,-209.43,0.00097897,2]
[343010142,1732276245800,-365.04966007,0.00097959,15]
[343010143,1732276245809,-157.65,0.00097989,120]
[343010144,1732276245819,-6000.0,0.00097989,120]
[343010145,1732276245828,-904.7,0.00097999,120]
[343010146,1732276245837,-904.7,0.00097999,120]
[343010147,1732276245846,-904.7,0.00097999,120]
[343010148,1732276245855,-904.7,0.00097999,120]
[343010149,1732276245864,-904.7,0.00097999,120]
[343010150,1732276245875,-904.7,0.00097999,120]
[343010151,1732276245885,-904.7,0.00097999,120]
[343010152,1732276245894,-904.7,0.00097999,120]
[343010153,1732276245903,-904.7,0.00097999,120]
[343010154,1732276245912,-904.7,0.00097999,120]
[343010155,1732276245921,-904.7,0.00097999,120]
[343010156,1732276245931,-904.7,0.00097999,120]
[343010157,1732276245940,-904.8276784,0.00097999,120]
[343010158,1732276245950,-500.0,0.00097999,120]
[343010159,1732276245959,-166.8,0.00097999,120]
[343010161,1732276245968,-274.51,0.00097999,120]
[343010162,1732276245977,-1716.61,0.00097999,120]
[343010163,1732276245987,-1716.61,0.00097999,120]
[343010164,1732276245997,-1716.61,0.00097999,120]
[343010165,1732276246006,-1716.61,0.00097999,120]
[343010166,1732276246016,-117.31897172,0.00097999,120]
[343010167,1732276246027,-1599.29102828,0.00097999,120]
[343010168,1732276246037,-1707.23460582,0.00097999,120]
[343010169,1732276246049,-9.37539418,0.00097999,120]
[343010170,1732276246058,-1273.8311842,0.00097999,120]
[343010172,1732276246069,-442.7788158,0.00097999,120]
[343010173,1732276246078,-1716.61,0.00097999,120]
[343010174,1732276246087,-1716.61,0.00097999,120]
[343010175,1732276246096,-1716.61,0.00097999,120]
[343010176,1732276246106,-1716.61,0.00097999,120]
[343010177,1732276246116,-1716.61,0.00097999,120]
[343010178,1732276246126,-1716.77887089,0.00097999,120]
[343010179,1732276246135,-359.95871,0.0009832,120]
[343010180,1732276246145,-365.04966007,0.00098444,15]
[343010181,1732276246154,-2500.0,0.000987,120]
[343010182,1732276246163,-163.5068668,0.00098792,16]
[343010183,1732276246172,-526.305423,0.00098792,16]
[343010184,1732276246181,-882.56101344,0.00098792,16]
[343010185,1732276246191,-1000.0,0.00098799,120]
[343010186,1732276246200,-612.82705875,0.00098799,120]
[343010187,1732276246209,-1452.93,0.00098799,120]
[343010188,1732276246220,-1452.93,0.00098799,120]
[343010189,1732276246233,-1452.93,0.00098799,120]
[343010190,1732276246243,-500.0,0.00098799,120]
[343010191,1732276246252,-500.0,0.00098799,120]
[343010192,1732276246263,-500.0,0.00098799,120]
[343010193,1732276246272,-500.0,0.00098799,120]
[343010194,1732276246282,-500.0,0.00098799,120]
[343010195,1732276246291,-509.23689634,0.00098799,120]
[343010196,1732276246301,-623.7,0.00098799,120]
[343010197,1732276246310,-623.7,0.00098799,120]
[343010198,1732276246320,-623.7,0.00098799,120]
[343010199,1732276246329,-500.0,0.00098799,120]
[343010200,1732276246339,-550.0,0.00098799,120]
[343010201,1732276246348,-500.0,0.00098799,120]
[343010202,1732276246357,-500.0,0.00098799,120]
[343010203,1732276246368,-500.0,0.00098799,120]
[343010204,1732276246378,-500.0,0.00098799,120]
[343010205,1732276246387,-2880.84024523,0.000988,120]
[343010206,1732276246399,-475.11397938,0.000988,120]
[343010207,1732276246421,-119.69937006,0.000988,120]
[343010208,1732276246431,-1809.0,0.000988,120]
[343010209,1732276246443,-3505.69642473,0.000988,120]
[343010210,1732276246539,-99.56286339,0.000988,120]
[343010211,1732276246551,-789.44,0.000988,120]
[343010212,1732276289942,642.0,0.000852,13]
[343010213,1732276290207,500.0,0.000852,13]
[343010214,1732276290814,500.0,0.000852,13]
[343010215,1732276450228,306.0,0.0003,120]
[343010216,1732276450926,200.0,9.6e-05,2]
[343010217,1732276804018,9965.11120392,0.00036929,2]
[343010218,1732276804313,5000.0,0.00036929,2]
[343010219,1732276866935,6831.0,0.0005,2]
[343010220,1732276888873,159.98,0.00041096,2]
[343010221,1732276897719,400.0,2.71e-06,120]
[343010222,1732276917616,3852.0,0.0005,2]
[343010223,1732276948387,61446.34381791,0.00045,2]
[343010224,1732276996203,10000.0,0.0005001,60]
[343010225,1732277134128,-488.0228861,0.00057,120]
[343010227,1732277232121,-300.0,0.00058999,9]
[343010228,1732277232143,-3548.15265275,0.00059,2]
[343010229,1732277247133,-1768.84734725,0.00059,2]
[343010230,1732277247157,-3152.79394291,0.00059,2]
[343010233,1732277345097,-9511.9771139,0.0006,120]
[343010234,1732277345117,-10000.0,0.0006,120]
[343010235,1732277345138,-6000.0,0.00063,120]
[343010236,1732277345159,-10000.0,0.0007,120]
[343010237,1732277345179,-1837.40842907,0.00075,120]
[343010238,1732277350106,-4677.28059376,0.00075,120]
[343010239,1732277351753,-2631.53890311,0.00075,120]
[343010240,1732277363079,-677.4836334,0.00075,120]
[343010241,1732277364123,-176.28844066,0.00075,120]
[343010242,1732277364144,-970.84395486,0.00075,2]
[343010243,1732277365102,-1255.81939573,0.00075,2]
[343010247,1732277369095,-613.90828306,0.00075,2]
[343010248,1732277374151,-2811.19472032,0.00075,2]
[343010249,1732277374173,-4671.83050696,0.000794,120]
[343010256,1732277431633,-2186.599995,0.000786,120]
[343010257,1732277431685,-1384.43875005,0.000786,120]
[343010258,1732277431793,-1221.87501474,0.000786,120]
[343010259,1732277431804,-757.70112046,0.000786,120]
[343010260,1732277431815,-39772.38511975,0.000786,120]
[343010261,1732277431824,-17090.19,0.0008,120]
[343010262,1732277431833,-11560.0,0.000807,120]
[343010263,1732277431842,-11560.0,0.000827,120]
[343010264,1732277431858,-3100.0,0.00089,27]
[343010265,1732277431867,-156.44985435,0.00089108,15]
[343010266,1732277431879,-1093.94,0.00089208,120]
[343010267,1732277431888,-2084.833,0.00089208,120]
[343010268,1732277431897,-177.967,0.00089208,120]
[343010269,1732277431906,-5000.0,0.0008934,120]
[343010270,1732277431915,-5000.0,0.00089375,120]
[343010271,1732277431925,-418.37,0.00089438,120]
[343010272,1732277431934,-547.02,0.00089459,120]
[343010273,1732277431944,-1759.45,0.00089639,120]
[343010274,1732277431953,-1003.83,0.00089765,120]
[343010275,1732277431963,-156.44985431,0.00090907,15]
[343010276,1732277431972,-250.0,0.00091725,120]
[343010277,1732277431981,-219.9,0.00092489,2]
[343010278,1732277431990,-156.44985431,0.00092705,15]
[343010279,1732277432001,-500.0,0.0009332,120]
[343010280,1732277432011,-150.17,0.00093471,120]
[343010281,1732277432020,-158.39,0.00093637,120]
[343010282,1732277432029,-514.0,0.000937,109]
[343010283,1732277432039,-2084.834,0.00094406,120]
[343010284,1732277432048,-326.3,0.00094407,30]
[343010285,1732277432058,-155.13,0.0009448,120]
[343010286,1732277432068,-156.44985431,0.00094504,15]
[343010287,1732277432078,-240.0,0.00094747,120]
[343010288,1732277432087,-219.9,0.00094753,2]
[343010289,1732277432097,-987.11,0.00094789,120]
[343010290,1732277432109,-4624.96332918,0.00094908,15]
[343010291,1732277432119,-280.72,0.0009499,120]
[343010293,1732277432128,-53128.37486869,0.00095,120]
[343010295,1732277432138,-4624.96332913,0.00095463,15]
[343010296,1732277432147,-1000.0,0.00095489,120]
[343010297,1732277432157,-23900.0,0.00095489,30]
[343010298,1732277432166,-200.0,0.00095489,30]
[343010299,1732277432176,-250.0,0.00095489,120]
[343010300,1732277432185,-250.0,0.00095489,120]
[343010301,1732277432195,-165.65,0.00095712,30]
[343010302,1732277432204,-1000.0,0.000959,30]
[343010303,1732277432222,-2500.0,0.000959,30]
[343010304,1732277432233,-10001.07371724,0.00096,5]
[343010305,1732277432243,-50000.0,0.00096,120]
[343010306,1732277432253,-4624.96332913,0.00096017,15]
[343010307,1732277432262,-500.0,0.0009625,30]
[343010308,1732277432271,-156.44985431,0.00096303,15]
[343010309,1732277432281,-481.72,0.00096406,120]
[343010310,1732277432290,-4624.96332913,0.00096572,15]
[343010311,1732277432300,-500.0,0.00096986,120]
[343010312,1732277432309,-519.75,0.00096986,120]
[343010314,1732277432319,-500.0,0.00096986,120]
[343010316,1732277432328,-550.81492272,0.00096986,120]
[343010317,1732277432338,-387.62822897,0.00096986,120]
[343010318,1732277432347,-500.0,0.00096986,120]
[343010319,1732277432358,-219.42442014,0.00096998,120]
[343010320,1732277432368,-241.23860442,0.00096999,120]
[343010321,1732277432377,-831.55,0.00096999,120]
[343010322,1732277432386,-831.55,0.00096999,120]
[343010323,1732277432395,-50000.0,0.00097,120]
[343010324,1732277432404,-219.9,0.00097017,2]
[343010325,1732277432413,-4624.96332913,0.00097127,15]
[343010326,1732277432423,-172.11557986,0.00097417,120]
[343010327,1732277432433,-4624.96332913,0.00097681,15]
[343010328,1732277432442,-206.8776327,0.000979,69]
[343010329,1732277432452,-500.0,0.00097999,120]
[343010330,1732277432461,-500.0,0.00097999,120]
[343010331,1732277432471,-500.0,0.00097999,120]
[343010332,1732277432480,-500.0,0.00097999,120]
[343010333,1732277432489,-100000.0,0.00098,88]
[343010334,1732277432499,-18175.86495248,0.00098,120]
[343010335,1732277432508,-50000.0,0.00098,120]
[343010336,1732277432518,-156.44985431,0.00098101,15]
[343010337,1732277432528,-4624.96332913,0.00098236,15]
[343010338,1732277432537,-150.0,0.00098543,90]
[343010339,1732277432547,-150.0,0.00098545,90]
[343010340,1732277432558,-239.97248,0.0009857,120]
[343010341,1732277432571,-150.0,0.00098581,90]
[343010342,1732277432580,-950.6931,0.00098689,120]
[343010343,1732277432590,-2500.0,0.000987,120]
[343010344,1732277432601,-968.55,0.000987,120]
[343010345,1732277432610,-157.66,0.00098779,120]
[343010346,1732277432620,-500.0,0.00098787,120]
[343010347,1732277432631,-519.75,0.00098787,120]
[343010348,1732277432641,-440.51,0.00098787,120]
[343010349,1732277432651,-500.0,0.00098788,120]
[343010350,1732277432660,-500.0,0.00098788,120]
[343010351,1732277432669,-500.0,0.00098788,120]
[343010352,1732277432680,-500.0,0.00098788,120]
[343010353,1732277432689,-227.86507728,0.00098788,120]
[343010354,1732277432699,-500.0,0.00098788,120]
[343010355,1732277432709,-500.0,0.00098788,120]
[343010356,1732277432718,-519.75,0.00098788,120]
[343010357,1732277432727,-519.75,0.00098788,120]
[343010358,1732277432737,-437.43919545,0.00098788,120]
[343010359,1732277432747,-500.0,0.00098788,120]
[343010360,1732277432756,-500.0,0.00098788,120]
[343010361,1732277432766,-587.95,0.00098788,120]
[343010362,1732277432775,-500.0,0.00098788,120]
[343010363,1732277432785,-500.0,0.00098788,120]
[343010364,1732277432794,-500.0,0.00098788,120]
[343010365,1732277432804,-500.0,0.00098788,120]
[343010366,1732277432814,-264.22496232,0.00098788,120]
[343010367,1732277432823,-500.0,0.00098788,120]
[343010368,1732277432832,-375.0,0.00098788,120]
[343010369,1732277432842,-131474.36171289,0.00098789,52]
[343010370,1732277432852,-17935.03189276,0.00098789,61]
[343010371,1732277432861,-409967.44842296,0.00098789,60]
[343010372,1732277432870,-673.050552,0.00098789,120]
[343010373,1732277432880,-4624.96332913,0.00098791,15]
[343010374,1732277432890,-304.1917872,0.00098792,16]
[343010375,1732277432899,-1210.78,0.00098799,120]
[343010376,1732277432909,-1210.78,0.00098799,120]
[343010377,1732277432918,-1210.78,0.00098799,120]
[343010378,1732277432928,-1210.78,0.00098799,120]
[343010379,1732277432938,-500.0,0.00098799,120]
[343010380,1732277432947,-591.71719589,0.00098799,120]
[343010381,1732277432957,-376.23746873,0.00098799,120]
[343010382,1732277432966,-500.0,0.00098799,120]
[343010383,1732277432975,-500.0,0.00098799,120]
[343010384,1732277432984,-500.0,0.00098799,120]
[343010385,1732277432994,-500.0,0.00098799,120]
[343010386,1732277433003,-495.80234406,0.00098799,120]
[343010387,1732277433012,-831.55,0.00098799,120]
[343010388,1732277433022,-831.55,0.00098799,120]
[343010389,1732277433032,-831.55,0.00098799,120]
[343010390,1732277433042,-831.55,0.00098799,120]
[343010391,1732277433052,-642.71042811,0.00098799,120]
[343010392,1732277433061,-500.0,0.00098799,120]
[343010393,1732277433070,-503.14419969,0.00098799,120]
[343010394,1732277433079,-500.0,0.00098799,120]
[343010395,1732277433089,-502.80229099,0.00098799,120]
[343010396,1732277433098,-502.70647458,0.00098799,120]
[343010397,1732277433110,-500.0,0.00098799,120]
[343010398,1732277433119,-470.74982571,0.00098799,120]
[343010399,1732277433129,-500.0,0.00098799,120]
[343010400,1732277433139,-643.47,0.00098799,120]
[343010401,1732277433149,-686.74,0.00098799,120]
[343010402,1732277433158,-686.74,0.00098799,120]
[343010403,1732277433168,-686.74,0.00098799,120]
[343010404,1732277433177,-686.74,0.00098799,120]
[343010405,1732277433187,-151.23803362,0.00098799,120]
[343010406,1732277433196,-500.0,0.00098799,120]
[343010407,1732277433206,-500.0,0.00098799,120]
[343010408,1732277433216,-500.0,0.00098799,120]
[343010409,1732277433226,-500.0,0.00098799,120]
[343010410,1732277433235,-500.0,0.00098799,120]
[343010411,1732277433244,-500.0,0.00098799,120]
[343010412,1732277433254,-500.0,0.00098799,120]
[343010413,1732277433263,-500.0,0.00098799,120]
[343010414,1732277433273,-500.0,0.00098799,120]
[343010415,1732277433282,-500.0,0.00098799,120]
[343010416,1732277433292,-500.0,0.00098799,120]
[343010417,1732277433301,-500.0,0.00098799,120]
[343010418,1732277433311,-500.0,0.00098799,120]
[343010419,1732277433321,-500.0,0.00098799,120]
[343010420,1732277433330,-500.0,0.00098799,120]
[343010421,1732277433340,-519.75,0.00098799,120]
[343010422,1732277433349,-519.75,0.00098799,120]
[343010423,1732277433360,-519.75,0.00098799,120]
[343010424,1732277433369,-500.0,0.00098799,120]
[343010425,1732277433379,-500.0,0.00098799,120]
[343010426,1732277433388,-500.0,0.00098799,120]
[343010427,1732277433398,-500.0,0.00098799,120]
[343010428,1732277433407,-500.0,0.00098799,120]
[343010429,1732277433416,-500.0,0.00098799,120]
[343010430,1732277433426,-244.72,0.00098799,120]
[343010431,1732277433435,-500.0,0.00098799,120]
[343010432,1732277433444,-500.0,0.00098799,120]
[343010433,1732277433454,-500.0,0.00098799,120]
[343010434,1732277433464,-500.0,0.00098799,120]
[343010435,1732277433474,-500.0,0.00098799,120]
[343010436,1732277433484,-500.0,0.00098799,120]
[343010437,1732277433494,-500.0,0.00098799,120]
[343010438,1732277433503,-500.0,0.00098799,120]
[343010439,1732277433513,-500.0,0.00098799,120]
[343010440,1732277433522,-500.0,0.00098799,120]
[343010441,1732277433532,-500.0,0.00098799,120]
[343010442,1732277433542,-500.0,0.00098799,120]
[343010443,1732277433553,-500.0,0.00098799,120]
[343010444,1732277433564,-500.0,0.00098799,120]
[343010445,1732277433575,-500.0,0.00098799,120]
[343010446,1732277433585,-500.0,0.00098799,120]
[343010447,1732277433595,-500.0,0.00098799,120]
[343010448,1732277433606,-499.60643479,0.00098799,120]
[343010449,1732277433616,-312261.26062254,0.000988,120]
[343010450,1732277433631,-520724.89533088,0.000988,120]
[343010451,1732277433641,-239.97247,0.000988,120]
[343010452,1732277433651,-150.0,0.0009882,120]
[343010453,1732277433660,-1354.178549,0.0009884,30]
[343010454,1732277433669,-790.10697525,0.0009886,30]
[343010455,1732277433681,-209.89302475,0.0009886,30]
[343010456,1732277433691,-1000.0,0.0009888,30]
[343010457,1732277433700,-151.95,0.000989,120]
[343010458,1732277433710,-157.05,0.000989,120]
[343010459,1732277433719,-459.84697525,0.000989,30]
[343010460,1732277433731,-903.19333175,0.000989,30]
[343010461,1732277433741,-1000.0,0.000989,30]
[343010462,1732277433750,-5123.71,0.0009891,30]
[343010463,1732277433760,-2123.77,0.0009891,30]
[343010464,1732277433770,-326.5452746,0.00098932,16]
[343010465,1732277433780,-348.898762,0.00098932,16]
[343010466,1732277433790,-371.2522494,0.00098932,16]
[343010467,1732277433800,-393.6057368,0.00098932,16]
[343010468,1732277433810,-415.9592242,0.00098932,16]
[343010469,1732277433819,-150.0,0.00098986,120]
[343010470,1732277433830,-275.10394285,0.00098986,120]
[343010471,1732277433839,-184.87309913,0.00098986,120]
[343010472,1732277433849,-1210.78,0.00098989,120]
[343010473,1732277433859,-1210.78,0.00098989,120]
[343010474,1732277433869,-831.55,0.00098989,120]
[343010475,1732277433879,-831.55,0.00098989,120]
[343010476,1732277433889,-686.74,0.00098989,120]
[343010477,1732277433899,-686.74,0.00098989,120]
[343010478,1732277433908,-500.0,0.00098989,120]